fUSD/lending_fUSD_20250809
["ID","MTS","AMOUNT","RATE_DAILY","PERIOD"]
[378186254,1754773832507,-1200.0,0.00018887,2]
[378186255,1754773832516,-300.0,0.00018887,2]
[378186256,1754773832526,-1200.0,0.00018887,2]
[378186257,1754773832535,-150.0,0.00018888,2]
[378186258,1754773832544,-150.0,0.00018888,2]
[378186259,1754773832554,-242.01144837,0.00018888,2]
[378186260,1754773832563,-150.0,0.00018888,2]
[378186261,1754773832572,-150.0,0.00018888,2]
[378186262,1754773832582,-150.0,0.00018888,2]
[378186263,1754773832591,-150.0,0.00018888,2]
[378186264,1754773832602,-150.0,0.00018888,2]
[378186265,1754773832612,-46.78322199,0.00019176,2]
[378186266,1754773832631,-258.70677801,0.00019176,2]
[378186267,1754773832641,-303.16,0.00019176,2]
[378186268,1754773832650,-301.79,0.00019176,2]
[378186269,1754773832660,-302.06,0.00019177,2]
[378186270,1754773832669,-302.43,0.00019177,2]
[378186271,1754773832679,-303.02,0.00019177,2]
[378186272,1754773832688,-300.11,0.00019177,2]
[378186273,1754773832698,-303.9,0.00019177,2]
[378186275,1754773832707,-302.76,0.00019177,2]
[378186277,1754773832716,-837.06,0.00019178,2]
[378186279,1754773832726,-303.1,0.00019178,2]
[378186281,1754773832735,-303.15,0.00019178,2]
[378186283,1754773832745,-300.48,0.00019178,2]
[378186284,1754773832754,-305.91,0.00019178,2]
[378186285,1754773832763,-305.42,0.00019178,2]
[378186286,1754773832777,-305.89,0.00019178,2]
[378186288,1754773832786,-301.69,0.00019178,2]
[378186290,1754773832795,-303.48,0.00019178,2]
[378186292,1754773832804,-150.0,0.00019412,4]
[378186294,1754773832813,-1000.0,0.00019572,2]
[378186295,1754773832822,-150.0,0.000197,2]
[378186297,1754773832832,-150.0,0.000197,2]
[378186298,1754773832841,-165.65,0.000197,2]
[378186299,1754773832851,-1047.47,0.000197,2]
[378186300,1754773832860,-538.0,0.000197,2]
[378186301,1754773832869,-150.0,0.000197,2]
[378186302,1754773832879,-359.68,0.000197,2]
[378186303,1754773832888,-20.09196586,0.000197,2]
[378186304,1754773832903,-153.08803414,0.000197,2]
[378186305,1754773832913,-1636.06,0.000197,2]
[378186306,1754773832922,-150.0,0.000197,2]
[378186307,1754773832931,-272.68921854,0.00019716,4]
[378186308,1754773832948,-244.31078146,0.00019716,4]
[378186309,1754773832957,-653.2,0.00019721,2]
[378186310,1754773832967,-197.61,0.00019752,2]
[378186311,1754773832977,-850.0,0.00019899,2]
[378186312,1754773832987,-600.0,0.000199,2]
[378186313,1754773832997,-600.0,0.000199,2]
[378186314,1754773833008,-231.63,0.000199,2]
[378186315,1754773833018,-708.96,0.000199,2]
[378186316,1754773833028,-204.97,0.00019931,2]
[378186317,1754773833038,-150.0,0.00019937,4]
[378186318,1754773833048,-239.84119403,0.00019949,2]
[378186319,1754773833059,-4662.51281194,0.00019949,2]
[378186320,1754773833069,-221.27219844,0.0001995,2]
[378186321,1754773833079,-1016.18,0.0001998,2]
[378186322,1754773833088,-305.81,0.0001998,2]
[378186323,1754773833098,-305.19,0.0001998,2]
[378186324,1754773833108,-305.71,0.0001998,2]
[378186325,1754773833118,-304.94,0.0001998,2]
[378186326,1754773833127,-302.73,0.0001998,2]
[378186327,1754773833137,-303.93,0.0001998,2]
[378186328,1754773833147,-4835.02578598,0.00020004,2]
[378186329,1754773833157,-5013.92174006,0.00020059,2]
[378186330,1754773833167,-160.00271845,0.00020101,2]
[378186331,1754773833177,-151.0,0.00020102,2]
[378186332,1754773833186,-359.76179104,0.00020102,2]
[378186333,1754773833196,-500.0,0.00020102,2]
[378186334,1754773833206,-151.0,0.00020102,2]
[378186335,1754773833216,-151.0,0.00020102,2]
[378186336,1754773833226,-311.13657547,0.00020102,2]
[378186337,1754773833237,-151.0,0.00020102,2]
[378186338,1754773833247,-151.0,0.00020102,2]
[378186339,1754773833258,-600.0,0.00020102,2]
[378186340,1754773833267,-151.0,0.00020102,2]
[378186341,1754773833277,-151.0,0.00020102,2]
[378186342,1754773833287,-160.0,0.00020102,2]
[378186343,1754773833296,-151.0,0.00020102,2]
[378186344,1754773833305,-151.0,0.00020102,2]
[378186345,1754773833315,-151.0,0.00020102,2]
[378186346,1754773833325,-151.0,0.00020102,2]
[378186347,1754773833335,-151.0,0.00020102,2]
[378186348,1754773833345,-151.0,0.00020102,2]
[378186349,1754773833355,-151.0,0.00020102,2]
[378186350,1754773833368,-151.0,0.00020102,2]
[378186351,1754773833377,-151.0,0.00020102,2]
[378186352,1754773833387,-151.0,0.00020102,2]
[378186353,1754773833396,-151.0,0.00020102,2]
[378186354,1754773833406,-151.0,0.00020102,2]
[378186355,1754773833416,-151.0,0.00020102,2]
[378186356,1754773833426,-500.0,0.00020102,2]
[378186357,1754773833435,-151.0,0.00020102,2]
[378186358,1754773833445,-500.0,0.00020102,2]
[378186359,1754773833454,-500.0,0.00020102,2]
[378186360,1754773833464,-500.0,0.00020102,2]
[378186361,1754773833474,-500.0,0.00020102,2]
[378186362,1754773833484,-500.0,0.00020102,2]
[378186363,1754773833494,-500.0,0.00020102,2]
[378186364,1754773833504,-151.0,0.00020102,2]
[378186365,1754773833514,-500.0,0.00020102,2]
[378186366,1754773833524,-151.0,0.00020102,2]
[378186367,1754773833534,-500.0,0.00020102,2]
[378186368,1754773833544,-151.0,0.00020102,2]
[378186369,1754773833554,-500.0,0.00020102,2]
[378186370,1754773833564,-151.0,0.00020102,2]
[378186371,1754773833574,-500.0,0.00020102,2]
[378186372,1754773833583,-151.0,0.00020102,2]
[378186373,1754773833592,-151.0,0.00020102,2]
[378186374,1754773833602,-151.0,0.00020102,2]
[378186375,1754773833613,-151.0,0.00020102,2]
[378186376,1754773833623,-151.0,0.00020102,2]
[378186377,1754773833632,-151.0,0.00020102,2]
[378186378,1754773833642,-151.0,0.00020102,2]
[378186379,1754773833651,-151.0,0.00020102,2]
[378186380,1754773833661,-151.0,0.00020102,2]
[378186381,1754773833671,-151.0,0.00020102,2]
[378186382,1754773833680,-5199.43684444,0.00020114,2]
[378186383,1754773833690,-150.99,0.00020145,2]
[378186384,1754773833700,-150.99,0.00020145,2]
[378186385,1754773833709,-500.0,0.00020157,2]
[378186386,1754773833718,-4718.39924347,0.00020169,2]
[378186387,1754773833728,-182.63,0.00020187,2]
[378186388,1754773833738,-538.0,0.000202,2]
[378186389,1754773833748,-500.0,0.00020212,2]
[378186390,1754773833758,-467.7,0.00020241,2]
[378186391,1754773833768,-500.0,0.00020267,2]
[378186392,1754773833778,-500.0,0.00020322,2]
[378186393,1754773833792,-283.40458164,0.0002037,2]
[378186394,1754773833802,-500.0,0.00020377,2]
[378186395,1754773833812,-301.64,0.0002039,2]
[378186396,1754773833822,-538.0,0.000204,2]
[378186397,1754773833832,-173.18,0.000204,2]
[378186398,1754773833843,-150.0,0.000204,2]
[378186399,1754773833852,-165.65,0.000204,2]
[378186400,1754773833864,-150.0,0.000204,2]
[378186401,1754773833874,-173.18,0.000204,2]
[378186402,1754773833884,-297.30594783,0.000204,2]
[378186403,1754773833902,-240.69405217,0.000204,2]
[378186404,1754773833912,-165.65,0.000204,2]
[378186405,1754773833922,-150.0,0.000204,2]
[378186406,1754773833933,-173.18,0.000204,2]
[378186407,1754773833943,-275.21684075,0.000204,2]
[378186408,1754773833959,-262.78315925,0.000204,2]
[378186409,1754773833971,-94.57131466,0.000204,2]
[378186414,1754773838212,-888.0,0.00019912,3]
[378186415,1754773838222,-71.07868534,0.000204,2]
[378186416,1754773838232,-150.0,0.000204,2]
[378186417,1754773838241,-173.18,0.000204,2]
[378186418,1754773838251,-162.85956462,0.000204,2]
[378186419,1754773838291,-375.14043538,0.000204,2]
[378186420,1754773838300,-152.59,0.000204,2]
[378186421,1754773838310,-165.65,0.000204,2]
[378186422,1754773838319,-170.68,0.000204,2]
[378186423,1754773838328,-163.81,0.000204,2]
[378186424,1754773838338,-60.39770431,0.000204,2]
[378186425,1754773838434,-477.60229569,0.000204,2]
[378186426,1754773838443,-796.99,0.000204,2]
[378186427,1754773838452,-538.0,0.000204,2]
[378186428,1754773838462,-431.37,0.000204,2]
[378186429,1754773838471,-500.0,0.00020432,2]
[378186430,1754773838480,-150.0,0.00020462,4]
[378186431,1754773838489,-300.62,0.00020463,2]
[378186432,1754773838498,-301.27,0.00020484,2]
[378186433,1754773838508,-457.43315432,0.00020487,2]
[378186434,1754773838519,-42.56684568,0.00020487,2]
[378186435,1754773838529,-173.18,0.000205,2]
[378186436,1754773838539,-150.0,0.000205,2]
[378186437,1754773838548,-150.0,0.000205,2]
[378186438,1754773838558,-359.68,0.000205,2]
[378186439,1754773838568,-150.0,0.000205,2]
[378186440,1754773838578,-165.65,0.000205,2]
[378186441,1754773838588,-538.0,0.000205,2]
[378186442,1754773838597,-158.92315432,0.000205,2]
[378186443,1754773838626,-379.07684568,0.000205,2]
[378186444,1754773838636,-150.0,0.000205,2]
[378186445,1754773838645,-158.49,0.000205,2]
[378186446,1754773838654,-151.57,0.000205,2]
[378186447,1754773838664,-173.18,0.000205,2]
[378186448,1754773838673,-165.65,0.000205,2]
[378186449,1754773838682,-150.0,0.000205,2]
[378186451,1754773838691,-467.7,0.000205,2]
[378186453,1754773838700,-150.0,0.000205,2]
[378186456,1754773838710,-154.14,0.000205,2]
[378186458,1754773838719,-359.68,0.000205,2]
[378186460,1754773838728,-796.99,0.000205,2]
[378186462,1754773838737,-538.0,0.000205,2]
[378186464,1754773838747,-150.0,0.000205,2]
[378186466,1754773838756,-173.18,0.000205,2]
[378186468,1754773838766,-165.65,0.000205,2]
[378186470,1754773838775,-150.0,0.000205,2]
[378186472,1754773838784,-796.99,0.000205,2]
[378186474,1754773838794,-359.68,0.000205,2]
[378186476,1754773838803,-150.0,0.000205,2]
[378186478,1754773838812,-467.7,0.000205,2]
[378186480,1754773838822,-4.95315432,0.000205,2]
[378186482,1754773838833,-145.04684568,0.000205,2]
[378186484,1754773838843,-150.0,0.000205,2]
[378186486,1754773838852,-538.0,0.000205,2]
[378186489,1754773838862,-150.0,0.000205,2]
[378186491,1754773838871,-150.0,0.000205,2]
[378186493,1754773838880,-165.65,0.000205,2]
[378186494,1754773838891,-8.65741082,0.000205,2]
[378186497,1754773838905,-141.34258918,0.000205,2]
[378186499,1754773838915,-796.99,0.000205,2]
[378186501,1754773838924,-467.7,0.000205,2]
[378186503,1754773838935,-173.18,0.000205,2]
[378186505,1754773838945,-359.68,0.000205,2]
[378186507,1754773838954,-165.65,0.000205,2]
[378186509,1754773838964,-173.18,0.000205,2]
[378186511,1754773838975,-538.0,0.000205,2]
[378186513,1754773838986,-115.12745435,0.000205,2]
[378186647,1754773840397,-888.0,0.00020412,3]
[378186649,1754773840407,-681.86254565,0.000205,2]
[378186651,1754773840416,-83.08134982,0.000205,2]
[378186653,1754773840428,-66.91865018,0.000205,2]
[378186655,1754773840437,-464.78,0.000205,2]
[378186657,1754773840447,-197.3093444,0.000205,2]
[378186659,1754773840459,-162.3706556,0.000205,2]
[378186661,1754773840469,-173.18,0.000205,2]
[378186663,1754773840478,-16.9414844,0.000205,2]
[378186678,1754773840608,-521.0585156,0.000205,2]
[378186680,1754773840618,-30.6258019,0.000205,2]
[378186682,1754773840630,-119.3741981,0.000205,2]
[378186684,1754773840639,-150.0,0.000205,2]
[378186686,1754773840649,-165.65,0.000205,2]
[378186688,1754773840658,-150.0,0.000205,2]
[378186690,1754773840668,-359.68,0.000205,2]
[378186692,1754773840678,-150.0,0.000205,2]
[378186694,1754773840687,-599.22,0.000205,2]
[378186696,1754773840697,-150.0,0.000205,2]
[378186698,1754773840707,-173.18,0.000205,2]
[378186700,1754773840716,-165.65,0.000205,2]
[378186702,1754773840725,-538.0,0.000205,2]
[378186704,1754773840735,-359.68,0.000205,2]
[378186706,1754773840744,-173.18,0.000205,2]
[378186708,1754773840753,-165.65,0.000205,2]
[378186710,1754773840763,-150.0,0.000205,2]
[378186712,1754773840772,-150.0,0.000205,2]
[378186714,1754773840782,-714.48,0.000205,2]
[378186716,1754773840791,-538.0,0.000205,2]
[378186718,1754773840801,-150.0,0.000205,2]
[378186720,1754773840810,-538.0,0.000205,2]
[378186722,1754773840820,-165.65,0.000205,2]
[378186724,1754773840830,-173.18,0.000205,2]
[378186726,1754773840840,-150.0,0.000205,2]
[378186728,1754773840850,-420.0,0.00020589,2]
[378186730,1754773840859,-837.06,0.00020637,2]
[378186732,1754773840870,-600.0,0.0002065,2]
[378186734,1754773840880,-151.0,0.0002065,2]
[378186737,1754773840894,-4143.0,0.00020684,2]
[378186739,1754773840906,-6079.0,0.00020684,2]
[378186741,1754773840916,-21450.0,0.00020684,2]
[378186743,1754773840927,-786.199,0.00020684,2]
[378186745,1754773840945,-1680.0,0.00020689,2]
[378186747,1754773840960,-1229.0,0.0002079,2]
[378186749,1754773840978,-301.7,0.0002079,2]
[378186751,1754773840995,-8220.7669,0.00020799,2]
[378186753,1754773841014,-1837.1616,0.000208,2]
[378186755,1754773841032,-2105.5716,0.000208,2]
[378186757,1754773841050,-3604.62416268,0.000208,2]
[378186759,1754773841067,-3604.62416268,0.00020811,2]
[378186761,1754773841085,-3604.62416268,0.00020822,2]
[378186763,1754773841103,-3604.62416268,0.00020833,2]
[378186765,1754773841121,-150.0,0.00020841,2]
[378186767,1754773841140,-150.0,0.00020842,2]
[378186769,1754773841158,-300.0,0.00020843,2]
[378186771,1754773841178,-3604.62416268,0.00020844,2]
[378186772,1754773841197,-3604.62416268,0.00020856,2]
[378186775,1754773841217,-3604.62416268,0.00020867,2]
[378186776,1754773841237,-300.0,0.00020868,2]
[378186778,1754773841258,-150.0,0.00020876,2]
[378186780,1754773841271,-3604.62416268,0.00020878,2]
[378186782,1754773841280,-150.0,0.0002088,2]
[378186784,1754773841290,-7186.2136,0.00020887,2]
[378186786,1754773841299,-3604.62416268,0.00020889,2]
[378186789,1754773841309,-888.0,0.0002089,3]
[378186791,1754773841318,-150.0,0.00020894,2]
[378186792,1754773841328,-209.1286623,0.00020898,2]
[378186795,1754773841337,-344.38545734,0.00020899,2]
[378186797,1754773841346,-225.61808295,0.00020899,2]
[378186799,1754773841355,-217.97991509,0.00020899,2]
[378186801,1754773841365,-2090.3557,0.000209,2]
[378186803,1754773841377,-376.5861711,0.000209,2]
[378186804,1754773841399,-158.26362285,0.000209,2]
[378186807,1754773841424,-5000.0,0.000209,2]
[378186809,1754773841447,-2601.29218767,0.000209,3]
[378186868,1754773842348,-25794.31821233,0.000209,3]
[378186870,1754773842357,-155.16313173,0.000209,2]
[378186872,1754773842367,-211.66152043,0.000209,3]
[378186874,1754773842377,-457.70825493,0.000209,3]
[378186876,1754773842386,-5788.40019373,0.000209,2]
[378186878,1754773842395,-3604.62416268,0.000209,2]
[378186879,1754773842405,-223.55205008,0.000209,3]
[378186881,1754773842414,-209.1286623,0.000209,2]
[378186884,1754773842424,-300.0,0.00020921,2]
[378186886,1754773842434,-150.0,0.00020926,2]
[378186888,1754773842443,-204.97,0.00020928,2]
[378186890,1754773842452,-150.0,0.00020945,2]
[378186892,1754773842462,-1913.837,0.00020957,2]
[378186894,1754773842472,-162.118,0.00020957,2]
[378186896,1754773842482,-150.0,0.00020957,2]
[378186898,1754773842491,-500.0,0.00020973,2]
[378186900,1754773842500,-500.0,0.00020973,2]
[378186902,1754773842510,-508.04139182,0.00020973,2]
[378186904,1754773842520,-500.0,0.00020973,2]
[378186906,1754773842529,-500.0,0.00020973,2]
[378186908,1754773842538,-500.0,0.00020973,2]
[378186910,1754773842548,-150.0,0.0002098,2]
[378186912,1754773842557,-150.0,0.0002098,2]
[378186914,1754773842567,-150.0,0.0002098,2]
[378186916,1754773842577,-150.0,0.0002098,2]
[378186918,1754773842586,-150.0,0.0002098,2]
[378186920,1754773842595,-178.64674276,0.0002098,2]
[378186922,1754773842605,-150.0,0.0002098,2]
[378186924,1754773842614,-150.0,0.0002098,2]
[378186926,1754773842626,-150.0,0.00020986,4]
[378186928,1754773842636,-150.0,0.00020988,2]
[378186930,1754773842645,-154.0,0.00020988,2]
[378186932,1754773842654,-151.0,0.00020988,2]
[378186934,1754773842664,-810.0,0.00020988,2]
[378186936,1754773842674,-956.0,0.00020988,2]
[378186938,1754773842683,-1253.0,0.00020988,2]
[378186940,1754773842694,-2086.574,0.00020988,2]
[378186942,1754773842703,-1295.0,0.00020988,2]
[378186944,1754773842712,-562.0,0.00020988,2]
[378186946,1754773842721,-959.0,0.00020988,2]
[378186948,1754773842731,-598.0,0.00020988,2]
[378186950,1754773842741,-1653.0,0.00020988,2]
[378186952,1754773842750,-1171.0,0.00020988,2]
[378186954,1754773842760,-893.0,0.00020988,2]
[378186956,1754773842769,-201.01696196,0.0002099,2]
[378186958,1754773842779,-500.0,0.00020994,2]
[378186960,1754773842788,-749.982516,0.00020995,2]
[378186962,1754773842797,-68112.6699557,0.00020995,2]
[378186964,1754773842807,-666.0,0.00020999,2]
[378186966,1754773842816,-300.0,0.00020999,2]
[378186968,1754773842825,-1000.0,0.00020999,2]
[378186970,1754773842835,-1000.0,0.00020999,2]
[378186972,1754773842844,-1000.0,0.00020999,2]
[378186974,1754773842854,-1000.0,0.00020999,2]
[378186976,1754773842863,-1000.0,0.00020999,2]
[378186978,1754773842876,-1000.0,0.00020999,2]
[378186980,1754773842885,-4475.39343664,0.00021,2]
[378186982,1754773842895,-593427.34025473,0.00021,2]
[378186984,1754773842909,-1189.25023091,0.00021,2]
[378186987,1754773842921,-530.33787288,0.00021,2]
[378186989,1754773842933,-510.0816,0.00021,2]
[378187075,1754773844084,-888.0,0.00020912,3]
[378187076,1754773844094,-2983.18733569,0.00021,2]
[378187237,1754773846547,-1768.2,0.00021,2]
[378187238,1754773846657,-123995.0459526,0.00021,2]
[378187239,1754773847063,-21479.02975493,0.00021,2]
[378187240,1754773875497,510.0,0.00017965,2]
[378187247,1754774076032,748.67,0.0002,7]
[378187248,1754774090491,1418.0,0.000165,5]
[378187249,1754774108253,3568.024258,7.945e-05,2]
[378187256,1754774484711,297.04,0.0002,10]
[378187264,1754774694346,220.79,0.00013699,2]
[378187267,1754774725157,1655.83309519,0.000175,2]
[378187277,1754774830815,365.34283854,0.00015,2]
[378187278,1754774834240,217.53098603,0.00015,2]
[378187283,1754774890189,3588.13801138,0.0002,14]
[378187286,1754774916740,485.66160952,0.0002,10]
[378187288,1754774919334,4922.61,0.000151,2]
[378187289,1754774919750,1466.33591318,0.0001421,7]
[378187293,1754774986825,183.45,0.00015229,2]
[378187297,1754775007714,9941.51204,7.945e-05,2]
[378187298,1754775019671,1806.84,0.00018232,2]
[378187306,1754775031595,-517.0,0.00018468,2]
[378187307,1754775031605,-136.82212702,0.0001855,2]
[378187308,1754775031657,-867.35787298,0.0001855,2]
[378187309,1754775031667,-300.0,0.00018633,2]
[378187310,1754775031677,-1200.0,0.00018633,2]
[378187311,1754775031686,-300.0,0.00018633,2]
[378187312,1754775031695,-300.0,0.00018633,2]
[378187313,1754775031704,-300.0,0.00018633,2]
[378187314,1754775031713,-717.37738771,0.00018634,2]
[378187315,1754775031724,-2627.45967441,0.00018634,2]
[378187316,1754775031735,-2334.037558,0.00018634,2]
[378187317,1754775031746,-300.94600305,0.00018634,2]
[378187318,1754775031758,-305.55000138,0.00018634,2]
[378187319,1754775031769,-2008.66405612,0.00018634,2]
[378187320,1754775031798,-1167.8,0.00018634,2]
[378187321,1754775031810,-14438.16531933,0.00018634,2]
[378187322,1754775031819,-1004.18,0.00018701,2]
[378187323,1754775031829,-180.07288731,0.00018873,2]
[378187324,1754775031838,-180.07288731,0.000189,2]
[378187325,1754775031847,-209.1286623,0.000189,2]
[378187326,1754775031856,-155.16313173,0.000189,2]
[378187327,1754775031866,-156.81818567,0.000189,3]
[378187328,1754775031875,-500.0,0.00018973,2]
[378187329,1754775031884,-500.0,0.00018973,2]
[378187330,1754775031893,-500.0,0.00018973,2]
[378187331,1754775031903,-578.8400194,0.00018973,2]
[378187332,1754775031914,-201.01696196,0.0001899,2]
[378187333,1754775031924,-850.0,0.00018999,2]
[378187334,1754775031933,-157.93265806,0.00018999,2]
[378187335,1754775031943,-152.58594056,0.00018999,2]
[378187336,1754775031953,-241.06982014,0.00018999,2]
[378187337,1754775031962,-500.0,0.00018999,2]
[378187338,1754775031971,-500.0,0.00018999,2]
[378187339,1754775031981,-4475.39343664,0.00019,2]
[378187340,1754775031990,-9475.56008959,0.00019,2]
[378187341,1754775032001,-5724.04218008,0.00019,2]
[378187342,1754775032014,-1878.43897831,0.00019,2]
[378187345,1754775032026,-2059.19949505,0.00019,2]
[378187351,1754775032053,-53266.36731431,0.00019,2]
[378187353,1754775032064,-11845.89889223,0.00019,2]
[378187355,1754775032075,-485.12788788,0.00019,2]
[378187357,1754775032086,-2475.883476,0.00019,2]
[378187359,1754775032097,-15591.38309232,0.00019,2]
[378187363,1754775032119,-1465.59357898,0.00019,2]
[378187365,1754775032130,-325.5,0.00019,2]
[378187368,1754775032150,-510.80112115,0.00019,2]
[378187370,1754775032162,-33693.91912683,0.00019,2]
[378187373,1754775032178,-461.78754401,0.00019,2]
[378187375,1754775032189,-1337.14245599,0.00019,2]
[378187436,1754775037490,-1391.58935,0.00019,2]
[378187437,1754775037558,-1106.92913534,0.00019,2]
[378187438,1754775037570,-1301.420335,0.00019,2]
[378187439,1754775037660,-20702.73267133,0.00019,2]
[378187440,1754775037725,-1449.27654,0.00019,2]
[378187618,1754775039570,-730986.14644782,0.00019,2]
[378187631,1754775039686,-48973.89631068,0.00019,2]
[378187644,1754775039803,-500.0,0.00018999,2]
[378187646,1754775039814,-500.0,0.00018999,2]
[378187648,1754775039824,-500.0,0.00018999,2]
[378187650,1754775039833,-247.05,0.00019,2]
[378187882,1754775042970,-500.0,0.00018999,2]
[378187883,1754775042980,-506.32947352,0.00018999,2]
[378187884,1754775042991,-466.35977403,0.00018999,2]
[378187885,1754775043001,-50036.88326247,0.00019,2]
[378187886,1754775043011,-64990.42748998,0.00019,2]
[378187887,1754775043028,-404.4745223,0.00019,2]
[378187892,1754775045792,-74353.50102023,0.00019,2]
[378187893,1754775045803,-69825.07131278,0.00019,2]
[378187894,1754775045854,-810.15941848,0.00019,2]
[378187902,1754775306764,155.48040169,0.00018228,2]
[378187911,1754775525587,150.0,0.0001819,2]
[378187912,1754775525816,517.0,0.00017468,2]
[378187919,1754775622693,1246.49,0.00018099,2]
[378187920,1754775650921,255.51,0.00018116,2]
[378187921,1754775651051,255.51,0.00018126,2]
[378187922,1754775651268,255.51,0.00018135,2]
[378187923,1754775651619,255.51,0.00018145,2]
[378187924,1754775651696,255.51,0.00018154,2]
[378187925,1754775651940,255.51,0.00018164,2]
[378187926,1754775652202,255.51,0.00018174,2]
[378187927,1754775652391,255.51,0.00018183,2]
[378187928,1754775652824,255.51,0.00018193,2]
[378187929,1754775653157,255.51,0.00018202,2]
[378187930,1754775653260,255.51,0.00018212,2]
[378187931,1754775653485,255.51,0.00018221,2]
[378187932,1754775653678,255.51,0.00018231,2]
[378187933,1754775668908,1499.69,0.00018085,2]
[378187937,1754775709737,234.4,0.00013699,2]
[378187938,1754775717848,209.23,0.00017889,2]
[378187943,1754775796347,511.0,0.00017468,2]
[378187956,1754776040545,957.0,0.000137,5]
[378187959,1754776098566,179.34,0.00018218,2]
[378187960,1754776125700,200.0,0.00017591,2]
[378187964,1754776148234,170.0,0.00018231,7]
[378187965,1754776183314,291.65,0.00018221,2]
[378187968,1754776216535,150.0,0.000175,2]
[378187970,1754776231713,-255.51,0.0001824,2]
[378187971,1754776231723,-1004.18,0.00018245,2]
[378187972,1754776231732,-255.51,0.0001825,2]
[378187973,1754776231742,-1004.18,0.00018256,2]
[378187974,1754776231752,-255.51,0.00018259,2]
[378187976,1754776231761,-378.74,0.00018261,2]
[378187977,1754776231770,-255.51,0.00018269,2]
[378187979,1754776231780,-986.83,0.00018271,2]
[378187981,1754776231789,-255.51,0.00018278,2]
[378187982,1754776231801,-255.51,0.00018288,2]
[378187983,1754776231810,-255.51,0.00018297,2]
[378187984,1754776231819,-449.75,0.00018301,2]
[378187985,1754776231830,-500.0,0.00018302,2]
[378187986,1754776231839,-1000.0,0.00018313,2]
[378187987,1754776231849,-1200.0,0.00018333,2]
[378187988,1754776231858,-23900.0,0.00018334,2]
[378187989,1754776231868,-618.02,0.00018344,2]
[378187990,1754776231878,-160.68,0.00018354,2]
[378187991,1754776231888,-544.99,0.00018367,2]
[378187992,1754776231897,-150.0,0.00018368,2]
[378187993,1754776231906,-200.0,0.00018386,2]
[378187994,1754776231916,-221.09,0.00018389,2]
[378187995,1754776231926,-554.49,0.00018402,2]
[378187996,1754776231935,-224.21,0.00018409,2]
[378187997,1754776231944,-164.5,0.00018441,2]
[378187998,1754776231955,-4736.45432083,0.00018468,2]
[378187999,1754776231964,-372.0,0.00018468,2]
[378188000,1754776231974,-1000.0,0.0001863,2]
[378188001,1754776231983,-150.0,0.0001868,2]
[378188002,1754776231993,-168.1,0.00018732,2]
[378188003,1754776232006,-150.0,0.00018789,2]
[378188004,1754776232015,-150.0,0.00018789,2]
[378188005,1754776232025,-150.0,0.00018789,2]
[378188006,1754776232035,-150.0,0.00018789,2]